[Event "FIDE WCCC Girls-10 2024"]
[Site "Montesilvano"]
[Date "2024.11.24"]
[Round "9.33"]
[White "Minzat, Victoria"]
[Black "Macakova, Bianka"]
[Result "1-0"]
[Annotator "NA RC"]
[ECO "C50"]
[WhiteElo "1505"]
[BlackElo "1610"]
[PlyCount "79"]
[EventDate "2024.11.18"]
[EventType "swiss"]
[EventCountry "ITA"]
[SourceTitle "playchess.com"]
[Source "ChessBase"]
[SourceQuality "1"]
[TimeControl "5400+30"]

1. e4 {[%emt 0:00:01]} e5 {[%emt 0:00:05]} 2. Nf3 {[%emt 0:00:05]} Nc6 {[%emt 0:00:09]} 3. Bc4 {[%emt 0:00:14]} Nf6 {[%emt 0:00:18]} 4. d3 {[%emt 0:00:21]} h6 {[%emt 0:01:15]} 5. Nc3 {[%emt 0:02:07]} Bc5 {[%emt 0:13:19]} 6. O-O g5 {[%emt 0:06:54]} 7. Be3 {[%emt 0:08:00]} Be7 {[%emt 0:16:14]} 8. Nd5 {[%emt 0:01:44]} d6 {[%emt 0:08:45]} 9. Nd2 {[%emt 0:07:24]} Na5 {[%emt 0:48:01]} 10. Nxf6+ {[%emt 0:08:07]} Bxf6 {[%emt 0:00:00]} 11. Bb3 {[%emt 0:00:51]} Nxb3 {[%emt 0:00:00]} 12. axb3 {[%emt 0:02:19]} a6 {[%emt 0:00:00]} 13. f3 {[%emt 0:01:11]} Be6 {[%emt 0:00:00]} 14. Nc4 {[%emt 0:03:47]} Qe7 {[%emt 0:00:00]} 15. c3 {[%emt 0:02:53]} h5 {[%emt 0:00:00]} 16. Nd2 {[%emt 0:04:01]} h4 {[%emt 0:00:00]} 17. h3 {[%emt 0:02:19]} Qd7 {[%emt 0:00:00]} 18. Kh2 {[%emt 0:02:55]} Rg8 {[%emt 0:00:00]} 19. Kg1 {[%emt 0:00:00]} Rh8 {[%emt 0:00:00]} 20. Kh2 {[%emt 0:01:00]} Rg8 {[%emt 0:00:00]} 21. Kg1 {[%emt 0:00:00]} Rh8 {[%emt 0:00:11]} 22. Kh2 {[%emt 0:01:00]} Rg8 23. c4 {[%emt 0:06:40]} Rg7 {[%emt 0:04:38]} 24. b4 {[%emt 0:00:54]} Be7 {[%emt 0:02:41]} 25. Qa4 {[%emt 0:01:30]} Qxa4 {[%emt 0:00:00]} 26. Rxa4 {[%emt 0:00:06]} Kd7 {[%emt 0:00:25]} 27. b5 {[%emt 0:00:47]} Rgg8 {[%emt 0:00:30]} 28. Rfa1 {[%emt 0:00:21]} a5 {[%emt 0:00:32]} 29. b4 {[%emt 0:00:19]} b6 {[%emt 0:00:17]} 30. bxa5 {[%emt 0:00:16]} Rxa5 {[%emt 0:00:38]} 31. Rxa5 {[%emt 0:00:10]} bxa5 {[%emt 0:00:08]} 32. Rxa5 {[%emt 0:00:05]} Rb8 {[%emt 0:00:55]} 33. Ra7 {[%emt 0:00:19]} Kc8 {[%emt 0:00:26]} 34. Nb3 {[%emt 0:01:38]} Bd8 {[%emt 0:00:36]} 35. Na5 {[%emt 0:01:02]} Bd7 {[%emt 0:00:28]} 36. Ra6 {[%emt 0:01:30]} f6 {[%emt 0:01:05]} 37. Kg1 {[%emt 0:02:29]} Be8 {[%emt 0:00:00]} 38. Kf2 {[%emt 0:01:08]} Bd7 {[%emt 0:00:22]} 39. Kg1 {[%emt 0:00:00]} Be8 {[%emt 0:00:34]} 40. Kf2 {[%emt 0:01:00]} 1-0

[Event "FIDE WCCC Girls-10 2024"]
[Site "Montesilvano"]
[Date "2024.11.24"]
[Round "9.34"]
[White "Mamarasulova, Yasmina"]
[Black "Milojevic, Dunja"]
[Result "1/2-1/2"]
[Annotator "NA RC"]
[ECO "E41"]
[WhiteElo "1444"]
[BlackElo "1610"]
[PlyCount "216"]
[EventDate "2024.11.18"]
[EventType "swiss"]
[EventCountry "ITA"]
[SourceTitle "playchess.com"]
[Source "ChessBase"]
[SourceQuality "1"]
[TimeControl "5400+30"]

1. d4 {[%emt 0:00:03]} Nf6 {[%emt 0:00:29]} 2. c4 {[%emt 0:00:08]} e6 {[%emt 0:00:05]} 3. Nc3 {[%emt 0:00:05]} Bb4 {[%emt 0:00:08]} 4. e3 {[%emt 0:00:09]} c5 {[%emt 0:00:10]} 5. Bd3 {[%emt 0:05:05]} Nc6 {[%emt 0:01:00]} 6. Nf3 {[%emt 0:00:26]} Bxc3+ {[%emt 0:02:10]} 7. bxc3 {[%emt 0:00:28]} d5 {[%emt 0:06:16]} 8. O-O {[%emt 0:12:36]} Qa5 {[%emt 0:16:40]} 9. Qc2 {[%emt 0:25:59]} O-O {[%emt 1:08:02]} 10. Ne5 {[%emt 0:06:43]} h6 {[%emt 0:00:30]} 11. f4 {[%emt 0:08:28]} cxd4 {[%emt 0:00:00]} 12. Nxc6 {[%emt 0:06:57]} bxc6 {[%emt 0:01:00]} 13. cxd4 {[%emt 0:00:09]} Ba6 {[%emt 0:00:00]} 14. Bd2 {[%emt 0:02:54]} Qa3 {[%emt 0:00:00]} 15. Rab1 {[%emt 0:02:21]} Rab8 {[%emt 0:00:00]} 16. Rb3 {[%emt 0:25:59]} Rxb3 {[%emt 0:00:00]} 17. axb3 {[%emt 0:00:00]} Rb8 {[%emt 0:00:00]} 18. Rb1 {[%emt 0:00:00]} Rf8 {[%emt 0:00:00]} 19. Rf1 {[%emt 0:00:00]} Rb8 {[%emt 0:00:00]} 20. Rb1 Nd7 {[%emt 0:00:00]} 21. Bc1 {[%emt 0:00:00]} Nf6 {[%emt 0:00:00]} 22. Bd2 Nd7 {[%emt 0:00:00]} 23. Bc1 {[%emt 0:00:00]} Qb4 {[%emt 0:00:00]} 24. Bd2 {[%emt 0:00:00]} Qb6 {[%emt 0:00:00]} 25. Ra1 {[%emt 0:00:00]} c5 {[%emt 0:00:00]} 26. cxd5 {[%emt 0:00:00]} Bxd3 {[%emt 0:00:00]} 27. Qxd3 {[%emt 0:00:00]} exd5 {[%emt 0:00:00]} 28. dxc5 {[%emt 0:00:54]} Qxb3 {[%emt 0:00:00]} 29. Qxb3 {[%emt 0:01:42]} Rxb3 {[%emt 0:00:00]} 30. c6 {[%emt 0:00:09]} Nb6 {[%emt 0:00:00]} 31. Rxa7 {[%emt 0:00:48]} Rb1+ {[%emt 0:00:00]} 32. Kf2 {[%emt 0:00:01]} Rb2 {[%emt 0:00:00]} 33. Ke2 {[%emt 0:01:33]} Rc2 {[%emt 0:00:00]} 34. c7 {[%emt 0:00:57]} Kh7 {[%emt 0:00:00]} 35. Kd3 {[%emt 0:00:59]} Rc6 {[%emt 0:00:00]} 36. Bc3 {[%emt 0:00:19]} Nc8 {[%emt 0:00:00]} 37. Rb7 {[%emt 0:01:07]} Nd6 {[%emt 0:00:00]} 38. Rb3 {[%emt 0:01:54]} Rxc7 {[%emt 0:00:00]} 39. Be5 {[%emt 0:00:12]} Rd7 {[%emt 0:00:00]} 40. Bxd6 {[%emt 0:00:11]} Rxd6 {[%emt 0:00:00]} 41. Kd4 {[%emt 0:00:02]} Kg6 {[%emt 0:00:04]} 42. Rb5 {[%emt 0:00:03]} f6 {[%emt 0:00:42]} 43. Rxd5 {[%emt 0:00:19]} Ra6 {[%emt 0:00:07]} 44. Ke4 {[%emt 0:00:20]} Ra2 {[%emt 0:01:28]} 45. Kf3 {[%emt 0:00:05]} Ra3 {[%emt 0:00:39]} 46. h4 {[%emt 0:00:13]} h5 {[%emt 0:01:04]} 47. g3 {[%emt 0:00:56]} f5 {[%emt 0:01:54]} 48. Rd6+ {[%emt 0:00:01]} Kf7 {[%emt 0:00:08]} 49. Rb6 {[%emt 0:00:09]} Rc3 {[%emt 0:00:31]} 50. Rb2 {[%emt 0:00:08]} Ke6 {[%emt 0:00:31]} 51. Rb6+ {[%emt 0:00:03]} Kf7 {[%emt 0:00:12]} 52. Rb2 {[%emt 0:00:14]} Ra3 {[%emt 0:01:24]} 53. Ke2 {[%emt 0:00:45]} Kf6 {[%emt 0:00:00]} 54. Rb4 {[%emt 0:00:00]} Ra2+ {[%emt 0:00:16]} 55. Kf3 {[%emt 0:00:27]} Ra3 {[%emt 0:00:10]} 56. Rb8 {[%emt 0:00:27]} Kf7 {[%emt 0:00:25]} 57. Rh8 {[%emt 0:00:36]} Kg6 {[%emt 0:00:14]} 58. Re8 {[%emt 0:00:07]} Kf7 {[%emt 0:00:13]} 59. Re5 {[%emt 0:00:07]} Kf6 {[%emt 0:00:07]} 60. Kg2 {[%emt 0:00:08]} Ra2+ {[%emt 0:00:15]} 61. Kh3 {[%emt 0:00:16]} Re2 {[%emt 0:00:12]} 62. Re8 {[%emt 0:02:20]} Kg6 {[%emt 0:00:25]} 63. Re6+ {[%emt 0:04:58]} Kf7 {[%emt 0:00:07]} 64. Re5 {[%emt 0:00:00]} Kf6 {[%emt 0:00:07]} 65. Re8 {[%emt 0:00:00]} Kf7 {[%emt 0:00:07]} 66. Rh8 {[%emt 0:00:00]} Kg6 {[%emt 0:00:05]} 67. Ra8 {[%emt 0:00:00]} Rxe3 {[%emt 0:00:28]} 68. Ra6+ {[%emt 0:00:00]} Kf7 {[%emt 0:00:17]} 69. Kg2 {[%emt 0:00:00]} Rd3 {[%emt 0:01:00]} 70. Kf2 {[%emt 0:00:00]} Rc3 {[%emt 0:00:09]} 71. Rd6 {[%emt 0:00:00]} Ra3 {[%emt 0:00:26]} 72. Rd5 {[%emt 0:00:00]} Kf6 {[%emt 0:00:08]} 73. Re5 {[%emt 0:00:00]} Rb3 {[%emt 0:00:09]} 74. Re2 {[%emt 0:00:00]} Ra3 {[%emt 0:00:31]} 75. Re8 {[%emt 0:00:00]} Rb3 {[%emt 0:00:09]} 76. Re1 {[%emt 0:00:00]} Kf7 {[%emt 0:00:25]} 77. Re5 {[%emt 0:00:00]} Kf6 {[%emt 0:00:05]} 78. Ra5 {[%emt 0:00:00]} Rc3 {[%emt 0:00:14]} 79. Ra6+ {[%emt 0:00:00]} Kf7 {[%emt 0:00:06]} 80. Rd6 {[%emt 0:00:04]} Rb3 {[%emt 0:00:15]} 81. Rd7+ {[%emt 0:00:10]} Kf6 {[%emt 0:00:09]} 82. Rd6+ {[%emt 0:00:02]} Kf7 {[%emt 0:00:10]} 83. Rd5 {[%emt 0:00:05]} Kf6 {[%emt 0:00:06]} 84. Re5 {[%emt 0:00:03]} Ra3 {[%emt 0:00:14]} 85. Re1 {[%emt 0:01:50]} Kf7 {[%emt 0:08:09]} 86. Re6 {[%emt 0:02:32]} Rb3 {[%emt 0:00:00]} 87. Re2 {[%emt 0:00:50]} Ra3 {[%emt 0:00:00]} 88. Re8 {[%emt 0:00:03]} Rb3 {[%emt 0:00:00]} 89. Re1 {[%emt 0:00:04]} Kf6 {[%emt 0:00:00]} 90. Re5 {[%emt 0:00:00]} Ra3 {[%emt 0:00:00]} 91. Re1 {[%emt 0:00:00]} Kf7 {[%emt 0:00:00]} 92. Rg1 {[%emt 0:00:00]} Kf6 {[%emt 0:00:00]} 93. Ke2 {[%emt 0:00:34]} Kf7 {[%emt 0:00:00]} 94. Kd2 {[%emt 0:00:07]} Kf6 {[%emt 0:00:00]} 95. Kc2 {[%emt 0:00:04]} Kf7 {[%emt 0:00:00]} 96. Kb2 {[%emt 0:00:04]} Rf3 {[%emt 0:00:00]} 97. Rg2 {[%emt 0:00:06]} Kf6 {[%emt 0:00:00]} 98. Kc1 {[%emt 0:00:12]} Kf7 {[%emt 0:00:00]} 99. Kd1 {[%emt 0:00:08]} Kf6 {[%emt 0:00:00]} 100. Ke1 {[%emt 0:00:06]} Ra3 {[%emt 0:00:00]} 101. Re2 {[%emt 0:05:05]} Rb3 {[%emt 0:03:02]} 102. Re5 {[%emt 0:00:00]} Rc3 {[%emt 0:00:00]} 103. Rd5 {[%emt 0:00:00]} Ra3 {[%emt 0:00:00]} 104. Ke2 {[%emt 0:00:00]} Kf7 {[%emt 0:00:00]} 105. Kd2 {[%emt 0:00:00]} Kf6 {[%emt 0:00:00]} 106. Kc2 {[%emt 0:00:00]} Kf7 {[%emt 0:00:00]} 107. Kb2 {[%emt 0:00:00]} Rf3 {[%emt 0:00:00]} 108. Kc1 {[%emt 0:00:00]} Kf6 {[%emt 0:00:00]} 1/2-1/2

[Event "FIDE WCCC Girls-10 2024"]
[Site "Montesilvano"]
[Date "2024.11.24"]
[Round "9.35"]
[White "Li, Grace"]
[Black "Song, Rina"]
[Result "1/2-1/2"]
[Annotator "NA RC"]
[ECO "B12"]
[WhiteElo "1529"]
[BlackElo "1599"]
[PlyCount "99"]
[EventDate "2024.11.18"]
[EventType "swiss"]
[EventCountry "ITA"]
[SourceTitle "playchess.com"]
[Source "ChessBase"]
[SourceQuality "1"]
[TimeControl "5400+30"]

1. e4 {[%emt 0:00:01]} c6 {[%emt 0:00:07]} 2. d4 {[%emt 0:00:06]} d5 {[%emt 0:00:08]} 3. e5 {[%emt 0:00:07]} Bf5 {[%emt 0:00:15]} 4. Nd2 {[%emt 0:00:11]} e6 {[%emt 0:02:10]} 5. Nb3 {[%emt 0:00:08]} Nd7 {[%emt 0:06:12]} 6. Be3 {[%emt 0:00:36]} Qc7 7. Be2 {[%emt 0:03:53]} Ne7 {[%emt 0:11:46]} 8. Nf3 {[%emt 0:03:04]} Ng6 {[%emt 0:03:45]} 9. O-O {[%emt 0:02:05]} Be7 {[%emt 0:02:52]} 10. Bd3 {[%emt 0:05:43]} Bxd3 {[%emt 0:02:19]} 11. Qxd3 {[%emt 0:00:29]} O-O {[%emt 0:00:24]} 12. Qd2 {[%emt 0:06:47]} c5 {[%emt 0:04:19]} 13. c3 {[%emt 0:02:29]} Rac8 {[%emt 0:03:57]} 14. Rac1 {[%emt 0:02:42]} Nb6 {[%emt 0:02:06]} 15. dxc5 {[%emt 0:02:39]} Nc4 {[%emt 0:00:09]} 16. Qe2 {[%emt 0:00:35]} Nxe3 {[%emt 0:00:10]} 17. Qxe3 {[%emt 0:00:16]} Bxc5 {[%emt 0:00:31]} 18. Nxc5 {[%emt 0:01:06]} Qxc5 {[%emt 0:00:08]} 19. Rfe1 {[%emt 0:01:42]} Qxe3 {[%emt 0:06:11]} 20. Rxe3 {[%emt 0:00:13]} Rc6 {[%emt 0:00:45]} 21. Nd4 {[%emt 0:01:52]} Rc7 {[%emt 0:00:56]} 22. Nb5 {[%emt 0:00:57]} Rc5 {[%emt 0:00:57]} 23. Nd6 {[%emt 0:01:49]} Rb8 {[%emt 0:04:32]} 24. Ree1 {[%emt 0:00:00]} Re8 25. Re3 Rb8 26. g3 {[%emt 0:05:04]} d4 {[%emt 0:02:25]} 27. Ne4 {[%emt 0:03:00]} dxe3 {[%emt 0:00:58]} 28. Nxc5 {[%emt 0:00:18]} exf2+ {[%emt 0:00:08]} 29. Kxf2 {[%emt 0:00:34]} Nxe5 {[%emt 0:00:06]} 30. Rd1 {[%emt 0:00:52]} g6 {[%emt 0:03:32]} 31. Re1 {[%emt 0:02:54]} Nc6 {[%emt 0:02:50]} 32. b4 {[%emt 0:01:24]} b6 {[%emt 0:02:20]} 33. Nd7 {[%emt 0:00:49]} Rd8 {[%emt 0:00:36]} 34. Rd1 {[%emt 0:00:19]} Kg7 {[%emt 0:00:34]} 35. Ke2 {[%emt 0:00:32]} Kg8 {[%emt 0:00:26]} 36. Kf2 {[%emt 0:00:28]} Kg7 {[%emt 0:00:34]} 37. Ke2 {[%emt 0:00:32]} Rc8 {[%emt 0:02:03]} 38. Rd3 {[%emt 0:05:26]} e5 {[%emt 0:03:40]} 39. b5 {[%emt 0:01:01]} e4 {[%emt 0:01:09]} 40. Re3 {[%emt 0:05:40]} Na5 {[%emt 0:00:15]} 41. Rxe4 {[%emt 0:01:20]} Rxc3 {[%emt 0:00:09]} 42. Rd4 {[%emt 0:00:26]} Rc2+ {[%emt 0:01:21]} 43. Rd2 {[%emt 0:02:17]} Rxd2+ {[%emt 0:00:30]} 44. Kxd2 {[%emt 0:00:30]} Nc4+ {[%emt 0:00:06]} 45. Kd3 {[%emt 0:01:12]} Nd6 46. a4 {[%emt 0:00:26]} h5 {[%emt 0:11:46]} 47. Kd4 {[%emt 0:00:33]} h4 {[%emt 0:00:28]} 48. g4 {[%emt 0:00:26]} f5 {[%emt 0:03:52]} 49. gxf5 {[%emt 0:01:03]} gxf5 {[%emt 0:00:11]} 50. Ne5 {[%emt 0:00:35]} 1/2-1/2

[Event "FIDE WCCC Girls-10 2024"]
[Site "Montesilvano"]
[Date "2024.11.24"]
[Round "9.36"]
[White "Giss, Annika"]
[Black "Guerra Mansilla, Maria Ignacia"]
[Result "1/2-1/2"]
[Annotator "NA RC"]
[ECO "C07"]
[WhiteElo "1586"]
[BlackElo "1545"]
[PlyCount "90"]
[EventDate "2024.11.18"]
[EventType "swiss"]
[EventCountry "ITA"]
[SourceTitle "playchess.com"]
[Source "ChessBase"]
[SourceQuality "1"]
[TimeControl "5400+30"]

1. e4 {[%emt 0:00:01]} e6 {[%emt 0:00:01]} 2. d4 {[%emt 0:00:09]} d5 {[%emt 0:00:05]} 3. Nd2 {[%emt 0:00:07]} c5 {[%emt 0:00:05]} 4. exd5 {[%emt 0:00:09]} Qxd5 {[%emt 0:00:10]} 5. Ngf3 {[%emt 0:00:18]} cxd4 {[%emt 0:00:52]} 6. Bc4 {[%emt 0:00:13]} Qd7 {[%emt 0:00:44]} 7. O-O {[%emt 0:00:58]} a6 {[%emt 0:02:26]} 8. Nb3 {[%emt 0:02:38]} Nc6 {[%emt 0:05:30]} 9. Nbxd4 {[%emt 0:00:16]} Nxd4 {[%emt 0:01:18]} 10. Nxd4 b5 {[%emt 0:03:35]} 11. Bd3 {[%emt 0:05:34]} Bb7 {[%emt 0:15:23]} 12. Be3 {[%emt 0:12:33]} Bd6 {[%emt 0:06:16]} 13. Re1 {[%emt 0:03:26]} Nf6 {[%emt 0:02:26]} 14. Qe2 {[%emt 0:07:00]} O-O {[%emt 0:02:16]} 15. c3 {[%emt 0:02:51]} Rac8 {[%emt 0:10:04]} 16. Bg5 {[%emt 0:02:56]} Be7 {[%emt 0:00:00]} 17. Rf1 {[%emt 0:00:00]} Bd6 {[%emt 0:01:00]} 18. Rfe1 {[%emt 0:01:00]} Be7 {[%emt 0:04:49]} 19. Qc2 {[%emt 0:03:54]} h6 {[%emt 0:00:44]} 20. Bh4 {[%emt 0:01:10]} Qd5 {[%emt 0:11:25]} 21. Nf3 {[%emt 0:00:57]} Qd7 {[%emt 0:02:55]} 22. Bxf6 {[%emt 0:02:36]} Bxf6 {[%emt 0:00:16]} 23. Rad1 {[%emt 0:01:19]} Qc7 {[%emt 0:00:55]} 24. Nd2 {[%emt 0:03:11]} b4 {[%emt 0:02:26]} 25. c4 {[%emt 0:04:43]} a5 {[%emt 0:01:57]} 26. b3 {[%emt 0:01:32]} Qb6 {[%emt 0:05:52]} 27. Ne4 {[%emt 0:44:29]} Bxe4 {[%emt 0:03:27]} 28. Bxe4 {[%emt 0:00:00]} Rfd8 {[%emt 0:02:25]} 29. Bf3 {[%emt 0:00:00]} Rxd1 {[%emt 0:01:10]} 30. Rxd1 {[%emt 0:00:00]} Rd8 {[%emt 0:00:54]} 31. h3 {[%emt 0:00:00]} Rxd1+ {[%emt 0:00:39]} 32. Qxd1 {[%emt 0:00:00]} Qd4 {[%emt 0:00:43]} 33. Qe2 {[%emt 0:00:00]} Be5 {[%emt 0:04:32]} 34. g3 {[%emt 0:00:00]} Qb2 {[%emt 0:00:44]} 35. Qxb2 {[%emt 0:00:00]} Bxb2 {[%emt 0:00:08]} 36. Kf1 {[%emt 0:00:00]} Kf8 {[%emt 0:00:35]} 37. c5 {[%emt 0:00:00]} Ke7 {[%emt 0:00:44]} 38. c6 {[%emt 0:00:00]} Kd6 {[%emt 0:00:21]} 39. Ke2 {[%emt 0:00:00]} Kc7 {[%emt 0:00:22]} 40. Kd3 {[%emt 0:00:00]} Kb6 {[%emt 0:00:52]} 41. Kc4 {[%emt 0:00:00]} Be5 {[%emt 0:00:33]} 42. Kd3 {[%emt 0:00:00]} Bb2 {[%emt 0:00:27]} 43. Kc4 {[%emt 0:00:00]} Be5 {[%emt 0:00:33]} 44. Kd3 {[%emt 0:00:00]} Bb2 {[%emt 0:00:27]} 45. Kc4 {[%emt 0:00:00]} Be5 {[%emt 0:00:33]} 1/2-1/2

[Event "FIDE WCCC Girls-10 2024"]
[Site "Montesilvano"]
[Date "2024.11.24"]
[Round "9.43"]
[White "Camacho Chavez, Nirvana"]
[Black "Mence, Jasmina"]
[Result "1-0"]
[Annotator "NA RC"]
[ECO "C54"]
[WhiteElo "1638"]
[BlackElo "1542"]
[PlyCount "51"]
[EventDate "2024.11.18"]
[EventType "swiss"]
[EventCountry "ITA"]
[SourceTitle "playchess.com"]
[Source "ChessBase"]
[SourceQuality "1"]
[TimeControl "5400+30"]

1. e4 {[%emt 0:00:05]} e5 {[%emt 0:00:06]} 2. Nf3 {[%emt 0:00:05]} Nc6 {[%emt 0:00:34]} 3. Bc4 {[%emt 0:00:20]} Nf6 {[%emt 0:00:15]} 4. d3 {[%emt 0:00:15]} Bc5 {[%emt 0:00:21]} 5. c3 {[%emt 0:00:23]} a6 {[%emt 0:00:31]} 6. Bb3 {[%emt 0:00:23]} Ba7 {[%emt 0:02:52]} 7. O-O {[%emt 0:00:41]} d6 {[%emt 0:02:08]} 8. Re1 {[%emt 0:00:24]} Ng4 {[%emt 0:01:53]} 9. Re2 {[%emt 0:01:31]} b5 {[%emt 0:06:43]} 10. h3 {[%emt 0:01:19]} Nf6 {[%emt 0:01:49]} 11. Nbd2 {[%emt 0:00:44]} O-O {[%emt 0:02:59]} 12. Nf1 {[%emt 0:01:36]} a5 {[%emt 0:07:57]} 13. Be3 {[%emt 0:00:33]} Bxe3 {[%emt 0:02:04]} 14. Nxe3 {[%emt 0:00:07]} a4 {[%emt 0:00:32]} 15. Bc2 {[%emt 0:00:12]} Re8 {[%emt 0:08:05]} 16. Nh2 {[%emt 0:10:27]} Nh5 {[%emt 0:05:37]} 17. Re1 {[%emt 0:02:15]} Qg5 {[%emt 0:03:16]} 18. Qf3 {[%emt 0:05:12]} Nf4 {[%emt 0:05:23]} 19. Kh1 {[%emt 0:04:07]} Re6 {[%emt 0:07:19]} 20. Nd5 {[%emt 0:03:21]} Nxd5 {[%emt 0:05:12]} 21. exd5 {[%emt 0:00:30]} Rf6 {[%emt 0:00:25]} 22. Qe2 {[%emt 0:01:38]} Ne7 {[%emt 0:03:25]} 23. d4 {[%emt 0:00:30]} Nxd5 {[%emt 0:03:11]} 24. Nf3 {[%emt 0:02:18]} Qh6 {[%emt 0:04:22]} 25. Qxb5 {[%emt 0:00:38]} Nb6 {[%emt 0:05:29]} 26. Qe8# {[%emt 0:00:17]} 1-0

[Event "FIDE WCCC Girls-10 2024"]
[Site "Montesilvano"]
[Date "2024.11.24"]
[Round "9.44"]
[White "Muradli, Sabira"]
[Black "Ivanova, Darina"]
[Result "1-0"]
[Annotator "NA RC"]
[ECO "B56"]
[WhiteElo "1430"]
[BlackElo "1516"]
[PlyCount "69"]
[EventDate "2024.11.18"]
[EventType "swiss"]
[EventCountry "ITA"]
[SourceTitle "playchess.com"]
[Source "ChessBase"]
[SourceQuality "1"]
[TimeControl "5400+30"]

1. e4 {[%emt 0:00:02]} c5 {[%emt 0:00:07]} 2. d4 {[%emt 0:00:02]} cxd4 {[%emt 0:00:06]} 3. Nf3 {[%emt 0:00:03]} g6 {[%emt 0:00:23]} 4. Nxd4 {[%emt 0:00:06]} Bg7 {[%emt 0:00:07]} 5. Nc3 {[%emt 0:00:08]} Nc6 {[%emt 0:00:13]} 6. Be3 {[%emt 0:00:07]} d6 {[%emt 0:00:16]} 7. Bb5 {[%emt 0:00:12]} Bd7 {[%emt 0:00:08]} 8. O-O {[%emt 0:00:21]} Nf6 {[%emt 0:00:06]} 9. Bxc6 {[%emt 0:02:29]} bxc6 {[%emt 0:00:16]} 10. Nf3 {[%emt 0:01:37]} O-O {[%emt 0:03:42]} 11. h3 {[%emt 0:01:46]} c5 {[%emt 0:04:15]} 12. e5 {[%emt 0:02:54]} dxe5 {[%emt 0:01:21]} 13. Nxe5 {[%emt 0:00:12]} Rc8 {[%emt 0:01:29]} 14. Qf3 {[%emt 0:00:41]} Qc7 {[%emt 0:02:58]} 15. Nxd7 {[%emt 0:00:16]} Qxd7 {[%emt 0:02:05]} 16. Rad1 {[%emt 0:01:01]} Qe6 {[%emt 0:00:16]} 17. Rfe1 {[%emt 0:02:08]} Qc6 {[%emt 0:02:19]} 18. Qxc6 {[%emt 0:00:21]} Rxc6 {[%emt 0:00:10]} 19. Bg5 {[%emt 0:00:28]} e6 {[%emt 0:04:06]} 20. b3 {[%emt 0:02:27]} c4 {[%emt 0:02:00]} 21. Bxf6 {[%emt 0:00:11]} Bxf6 {[%emt 0:00:17]} 22. Ne4 {[%emt 0:00:06]} Bg7 {[%emt 0:00:20]} 23. Rd7 {[%emt 0:00:20]} cxb3 {[%emt 0:00:34]} 24. cxb3 {[%emt 0:00:08]} Ra6 {[%emt 0:00:19]} 25. a4 {[%emt 0:00:13]} Rb8 {[%emt 0:02:11]} 26. Re3 {[%emt 0:00:46]} Rc8 {[%emt 0:01:06]} 27. Nd6 {[%emt 0:00:30]} Bd4 {[%emt 0:02:55]} 28. Rf3 {[%emt 0:00:41]} Be5 {[%emt 0:00:16]} 29. Nxc8 {[%emt 0:00:21]} f5 {[%emt 0:00:52]} 30. Nxa7 {[%emt 0:00:55]} Rb6 {[%emt 0:00:34]} 31. Nb5 {[%emt 0:00:22]} Rc6 {[%emt 0:00:21]} 32. g3 {[%emt 0:00:16]} Rc1+ {[%emt 0:00:39]} 33. Kg2 {[%emt 0:00:04]} Rb1 {[%emt 0:00:16]} 34. Re3 {[%emt 0:00:27]} Bg7 {[%emt 0:00:28]} 35. Rxe6 {[%emt 0:00:32]} 1-0

[Event "FIDE WCCC Girls-10 2024"]
[Site "Montesilvano"]
[Date "2024.11.24"]
[Round "9.46"]
[White "Ritinioti, Sofia"]
[Black "Yang, Haeun"]
[Result "1-0"]
[Annotator "NA RC"]
[ECO "E01"]
[WhiteElo "1534"]
[BlackElo "1475"]
[PlyCount "145"]
[EventDate "2024.11.18"]
[EventType "swiss"]
[EventCountry "ITA"]
[SourceTitle "playchess.com"]
[Source "ChessBase"]
[SourceQuality "1"]
[TimeControl "5400+30"]

1. d4 {[%emt 0:00:03]} d5 {[%emt 0:00:11]} 2. Nf3 {[%emt 0:00:11]} Nf6 {[%emt 0:00:06]} 3. g3 {[%emt 0:00:12]} Nc6 {[%emt 0:00:25]} 4. Bg2 {[%emt 0:00:24]} e6 {[%emt 0:00:53]} 5. O-O {[%emt 0:00:39]} Bd6 {[%emt 0:00:12]} 6. c4 {[%emt 0:01:03]} dxc4 {[%emt 0:00:29]} 7. Nbd2 {[%emt 0:00:55]} b5 {[%emt 0:00:30]} 8. a4 {[%emt 0:00:52]} Ba6 {[%emt 0:01:21]} 9. axb5 {[%emt 0:01:17]} Bxb5 {[%emt 0:00:10]} 10. Qc2 {[%emt 0:01:50]} Be7 {[%emt 0:02:57]} 11. e3 {[%emt 0:05:31]} Nb4 {[%emt 0:00:44]} 12. Qc3 {[%emt 0:01:56]} Nbd5 {[%emt 0:00:18]} 13. Qa5 {[%emt 0:01:31]} c6 {[%emt 0:01:33]} 14. Qxd8+ {[%emt 0:01:08]} Bxd8 {[%emt 0:00:10]} 15. Rd1 {[%emt 0:03:19]} c3 {[%emt 0:00:44]} 16. bxc3 {[%emt 0:01:08]} Nxc3 {[%emt 0:01:15]} 17. Re1 {[%emt 0:01:00]} Ne2+ {[%emt 0:00:43]} 18. Kh1 {[%emt 0:00:34]} Ng4 {[%emt 0:00:38]} 19. h3 {[%emt 0:05:14]} Nxf2+ {[%emt 0:01:00]} 20. Kh2 {[%emt 0:00:28]} Bc7 {[%emt 0:00:17]} 21. Ne5 {[%emt 0:04:02]} f6 {[%emt 0:00:31]} 22. Bxc6+ {[%emt 0:05:17]} Bxc6 {[%emt 0:01:10]} 23. Rxe2 {[%emt 0:01:45]} fxe5 {[%emt 0:00:22]} 24. Rxf2 {[%emt 0:00:35]} exd4 {[%emt 0:00:18]} 25. exd4 {[%emt 0:00:43]} Bb6 {[%emt 0:00:32]} 26. Bb2 {[%emt 0:01:29]} e5 {[%emt 0:02:00]} 27. Re1 {[%emt 0:01:11]} Rb8 {[%emt 0:01:44]} 28. Rxe5+ {[%emt 0:01:09]} Kd8 {[%emt 0:00:38]} 29. Nc4 {[%emt 0:02:15]} Bc7 {[%emt 0:00:31]} 30. Rc5 {[%emt 0:03:43]} Bb5 {[%emt 0:00:29]} 31. Ne5 {[%emt 0:01:57]} Kc8 {[%emt 0:05:51]} 32. Nf7 {[%emt 0:02:12]} Rg8 {[%emt 0:02:55]} 33. Nd6+ {[%emt 0:00:41]} Kd7 {[%emt 0:01:20]} 34. Nxb5 {[%emt 0:00:31]} Bb6 {[%emt 0:01:11]} 35. Re5 {[%emt 0:02:43]} a6 {[%emt 0:00:38]} 36. Na3 {[%emt 0:02:45]} Ba7 {[%emt 0:00:44]} 37. Nc4 {[%emt 0:02:29]} Rgc8 {[%emt 0:01:11]} 38. Rf7+ {[%emt 0:44:48]} Kd8 {[%emt 0:00:32]} 39. Rf8+ {[%emt 0:00:00]} Kd7 {[%emt 0:00:11]} 40. Rf7+ {[%emt 0:00:00]} Kd8 {[%emt 0:00:10]} 41. Rd5+ {[%emt 0:00:00]} Ke8 {[%emt 0:00:17]} 42. Nd6+ {[%emt 0:00:00]} Kd8 {[%emt 0:00:41]} 43. Nxc8+ {[%emt 0:00:00]} Kxc8 {[%emt 0:00:03]} 44. Rf8+ {[%emt 0:00:00]} Kc7 {[%emt 0:00:15]} 45. Rxb8 {[%emt 0:00:00]} Bxb8 {[%emt 0:00:01]} 46. Rf5 {[%emt 0:00:00]} Kb6 {[%emt 0:00:54]} 47. Rf7 {[%emt 0:00:00]} a5 {[%emt 0:00:26]} 48. Rxg7 {[%emt 0:00:00]} a4 {[%emt 0:00:35]} 49. Ba3 {[%emt 0:00:00]} Ka5 {[%emt 0:00:14]} 50. Rxh7 {[%emt 0:00:00]} Kb6 {[%emt 0:00:20]} 51. Rh6+ {[%emt 0:00:00]} Kb7 {[%emt 0:00:18]} 52. d5 {[%emt 0:00:00]} Kc7 {[%emt 0:00:29]} 53. Ra6 {[%emt 0:00:00]} Kb7 {[%emt 0:00:39]} 54. Rxa4 {[%emt 0:00:00]} Kc7 {[%emt 0:04:14]} 55. Rg4 {[%emt 0:00:00]} Kd7 {[%emt 0:00:57]} 56. h4 {[%emt 0:00:00]} Be5 {[%emt 0:00:35]} 57. h5 {[%emt 0:00:00]} Bc3 {[%emt 0:00:25]} 58. h6 {[%emt 0:00:00]} Ba1 {[%emt 0:00:15]} 59. h7 {[%emt 0:00:00]} Bc3 {[%emt 0:00:06]} 60. Rh4 {[%emt 0:00:00]} Bh8 {[%emt 0:00:13]} 61. Bb2 {[%emt 0:00:00]} Bxb2 {[%emt 0:00:17]} 62. h8=Q {[%emt 0:00:00]} Bxh8 {[%emt 0:00:02]} 63. Rxh8 {[%emt 0:00:00]} Kd6 {[%emt 0:00:09]} 64. Rf8 {[%emt 0:00:00]} Kxd5 {[%emt 0:00:16]} 65. g4 {[%emt 0:00:00]} Ke6 {[%emt 0:00:17]} 66. g5 {[%emt 0:00:00]} Ke7 {[%emt 0:00:09]} 67. Rf1 {[%emt 0:00:00]} Ke8 {[%emt 0:00:24]} 68. g6 {[%emt 0:00:00]} Kd8 {[%emt 0:00:08]} 69. g7 {[%emt 0:00:00]} Ke7 {[%emt 0:00:03]} 70. g8=Q {[%emt 0:00:00]} Kd7 {[%emt 0:00:03]} 71. Rf6 {[%emt 0:00:00]} Ke7 {[%emt 0:00:13]} 72. Qg7+ {[%emt 0:00:00]} Ke8 {[%emt 0:00:06]} 73. Rf8# {[%emt 0:00:00]} 1-0